[Event "*** SCC Grand Prix: Titled Tuesday Blitz"]
[Site "Chess.com"]
[Date "2020.09.29"]
[Round "3"]
[White "Nachsueb"]
[Black "Julianos82"]
[Result "0-1"]
[WhiteElo "1972"]
[BlackElo "2317"]
[TimeControl "180+1"]
[EndTime "10:26:32 PDT"]
[Termination "Julianos82 won by resignation"]

1. c4 {[%clk 0:03:00.3]} 1... e6 {[%clk 0:02:58.6]} 2. Nc3 {[%clk 0:02:59.1]}
2... b6 {[%clk 0:02:57.8]} 3. d4 {[%clk 0:02:58.3]} 3... Bb7 {[%clk 0:02:54.4]}
4. e4 {[%clk 0:02:58.6]} 4... Bb4 {[%clk 0:02:53]} 5. f3 {[%clk 0:02:58.7]} 5...
f5 {[%clk 0:02:51.9]} 6. Bd3 {[%clk 0:02:56.3]} 6... Nf6 {[%clk 0:02:29.3]} 7.
e5 {[%clk 0:02:54.2]} 7... Nh5 {[%clk 0:02:21.5]} 8. Ne2 {[%clk 0:02:45.8]} 8...
Bxc3+ {[%clk 0:02:16]} 9. bxc3 {[%clk 0:02:43.8]} 9... Qh4+ {[%clk 0:02:09.1]}
10. g3 {[%clk 0:02:38.5]} 10... Qh3 {[%clk 0:02:07.7]} 11. Nf4 {[%clk
0:02:02.5]} 11... Nxf4 {[%clk 0:02:00.5]} 12. Bxf4 {[%clk 0:02:03.4]} 12... Qg2
{[%clk 0:01:37.4]} 13. Rf1 {[%clk 0:02:01.7]} 13... Nc6 {[%clk 0:01:33.7]} 14.
Qe2 {[%clk 0:01:53.5]} 14... Qxe2+ {[%clk 0:01:32.6]} 15. Kxe2 {[%clk
0:01:54.1]} 15... Na5 {[%clk 0:01:32.5]} 16. d5 {[%clk 0:01:44.9]} 16... Ba6
{[%clk 0:01:26.5]} 17. g4 {[%clk 0:01:17.7]} 17... Bxc4 {[%clk 0:01:21.2]} 18.
dxe6 {[%clk 0:01:15.8]} 18... dxe6 {[%clk 0:01:18.5]} 19. gxf5 {[%clk
0:01:14.8]} 19... exf5 {[%clk 0:01:13.9]} 20. Bg5 {[%clk 0:01:09.2]} 20... h6
{[%clk 0:01:10.4]} 21. Bh4 {[%clk 0:01:07.3]} 21... g5 {[%clk 0:01:08.5]} 22.
Bf2 {[%clk 0:01:07.1]} 22... O-O-O {[%clk 0:01:04.9]} 23. Bxc4 {[%clk
0:01:06.6]} 23... Nxc4 {[%clk 0:01:05.8]} 24. Rfd1 {[%clk 0:01:04.4]} 24... c5
{[%clk 0:01:04.6]} 25. h4 {[%clk 0:00:59]} 25... Rxd1 {[%clk 0:01:02.5]} 26.
Rxd1 {[%clk 0:00:58.5]} 26... Rd8 {[%clk 0:01:03.4]} 27. Rg1 {[%clk 0:00:49.9]}
27... Rd2+ {[%clk 0:00:59.8]} 28. Ke1 {[%clk 0:00:49.8]} 28... Rxa2 {[%clk
0:00:59.5]} 29. hxg5 {[%clk 0:00:49.4]} 29... Ra1+ {[%clk 0:00:59.5]} 30. Ke2
{[%clk 0:00:49.8]} 30... Rxg1 {[%clk 0:00:59.9]} 31. Bxg1 {[%clk 0:00:50.7]}
31... hxg5 {[%clk 0:00:59.8]} 32. Bh2 {[%clk 0:00:47.7]} 32... Kd7 {[%clk
0:00:56.8]} 33. Kd3 {[%clk 0:00:47.9]} 33... Na5 {[%clk 0:00:50.4]} 0-1

[Event "*** SCC Grand Prix: Titled Tuesday Blitz"]
[Site "Chess.com"]
[Date "2020.09.29"]
[Round "3"]
[White "FontVella8"]
[Black "esrosenberg"]
[Result "1-0"]
[WhiteElo "2475"]
[BlackElo "2207"]
[TimeControl "180+1"]
[EndTime "10:26:35 PDT"]
[Termination "FontVella8 won by checkmate"]

1. e4 {[%clk 0:03:00.9]} 1... e5 {[%clk 0:02:59.6]} 2. Nc3 {[%clk 0:03:00.5]}
2... Nf6 {[%clk 0:02:58.6]} 3. g3 {[%clk 0:03:00.9]} 3... Nc6 {[%clk 0:02:54]}
4. Bg2 {[%clk 0:03:00.8]} 4... Bc5 {[%clk 0:02:54.3]} 5. Nge2 {[%clk 0:03:00.9]}
5... a6 {[%clk 0:02:54.7]} 6. O-O {[%clk 0:03:00.1]} 6... Ba7 {[%clk 0:02:54.6]}
7. d3 {[%clk 0:02:59.6]} 7... d6 {[%clk 0:02:54.5]} 8. h3 {[%clk 0:03:00]} 8...
h5 {[%clk 0:02:37]} 9. Bg5 {[%clk 0:02:55.4]} 9... h4 {[%clk 0:02:32.5]} 10.
gxh4 {[%clk 0:02:38.6]} 10... Ne7 {[%clk 0:02:19.5]} 11. Ng3 {[%clk 0:02:29.2]}
11... Be6 {[%clk 0:02:09.5]} 12. h5 {[%clk 0:02:02.7]} 12... Qd7 {[%clk
0:02:06]} 13. h6 {[%clk 0:01:51.9]} 13... gxh6 {[%clk 0:01:04.2]} 14. Bxf6
{[%clk 0:01:51]} 14... Rg8 {[%clk 0:01:04.8]} 15. Kh2 {[%clk 0:01:44.6]} 15...
O-O-O {[%clk 0:00:49.8]} 16. Nd5 {[%clk 0:01:37.8]} 16... Bxd5 {[%clk
0:00:33.5]} 17. exd5 {[%clk 0:01:38.7]} 17... Rg6 {[%clk 0:00:33.6]} 18. Bxe7
{[%clk 0:01:35.3]} 18... Qxe7 {[%clk 0:00:33.7]} 19. Be4 {[%clk 0:01:34.9]}
19... Rg5 {[%clk 0:00:20.8]} 20. Qf3 {[%clk 0:01:34.6]} 20... Rdg8 {[%clk
0:00:19.2]} 21. Rg1 {[%clk 0:01:18.3]} 21... h5 {[%clk 0:00:07.8]} 22. Nf5
{[%clk 0:01:15]} 22... Qf6 {[%clk 0:00:07.7]} 23. Rxg5 {[%clk 0:01:13]} 23...
Qxg5 {[%clk 0:00:06.2]} 24. h4 {[%clk 0:01:09.1]} 24... Qf6 {[%clk 0:00:04.9]}
25. Rg1 {[%clk 0:01:07.6]} 25... Rxg1 {[%clk 0:00:04.2]} 26. Kxg1 {[%clk
0:01:08.5]} 26... Kb8 {[%clk 0:00:04.1]} 27. Qxh5 {[%clk 0:01:07.8]} 27... Bxf2+
{[%clk 0:00:02.8]} 28. Kxf2 {[%clk 0:01:07.3]} 28... c6 {[%clk 0:00:03.3]} 29.
Qg5 {[%clk 0:01:07.4]} 29... Qh8 {[%clk 0:00:02.7]} 30. Nxd6 {[%clk 0:01:04.6]}
30... cxd5 {[%clk 0:00:02.1]} 31. Qe7 {[%clk 0:01:02.3]} 31... dxe4 {[%clk
0:00:01.9]} 32. Qxb7# {[%clk 0:01:02]} 1-0

[Event "*** SCC Grand Prix: Titled Tuesday Blitz"]
[Site "Chess.com"]
[Date "2020.09.29"]
[Round "3"]
[White "CM_rui"]
[Black "BikingBrian"]
[Result "1/2-1/2"]
[WhiteElo "2391"]
[BlackElo "2205"]
[TimeControl "180+1"]
[EndTime "10:26:37 PDT"]
[Termination "Game drawn by agreement"]

1. e4 {[%clk 0:03:00.9]} 1... c5 {[%clk 0:02:58.3]} 2. Nf3 {[%clk 0:03:00.5]}
2... g6 {[%clk 0:02:54.2]} 3. c4 {[%clk 0:03:00.4]} 3... Nc6 {[%clk 0:02:51.9]}
4. d4 {[%clk 0:03:00.8]} 4... cxd4 {[%clk 0:02:52.8]} 5. Nxd4 {[%clk 0:03:01.3]}
5... Nf6 {[%clk 0:02:52.7]} 6. Nc3 {[%clk 0:03:00.2]} 6... d6 {[%clk 0:02:53]}
7. Be2 {[%clk 0:02:58.8]} 7... Nxd4 {[%clk 0:02:52.3]} 8. Qxd4 {[%clk
0:02:57.9]} 8... Bg7 {[%clk 0:02:53.2]} 9. Be3 {[%clk 0:02:57.4]} 9... O-O
{[%clk 0:02:53]} 10. Qd2 {[%clk 0:02:57.9]} 10... a5 {[%clk 0:02:53]} 11. O-O
{[%clk 0:02:58.1]} 11... a4 {[%clk 0:02:53]} 12. f3 {[%clk 0:02:57.7]} 12... Qa5
{[%clk 0:02:52.7]} 13. Rac1 {[%clk 0:02:52.5]} 13... Be6 {[%clk 0:02:50]} 14.
Rfd1 {[%clk 0:02:29.9]} 14... Rfc8 {[%clk 0:02:48.4]} 15. b3 {[%clk 0:02:24.1]}
15... axb3 {[%clk 0:02:48.4]} 16. axb3 {[%clk 0:02:25]} 16... Qb4 {[%clk
0:02:48.7]} 17. Na4 {[%clk 0:01:41.1]} 17... Qxd2 {[%clk 0:02:12.4]} 18. Rxd2
{[%clk 0:01:42]} 18... Nd7 {[%clk 0:02:12.2]} 19. Rcd1 {[%clk 0:01:10.5]} 19...
b5 {[%clk 0:02:04.1]} 20. Nb2 {[%clk 0:00:50.2]} 20... Ra3 {[%clk 0:01:37.7]}
21. cxb5 {[%clk 0:00:35.6]} 21... Rxb3 {[%clk 0:01:36.7]} 22. Nd3 {[%clk
0:00:28.5]} 22... Rxb5 {[%clk 0:01:23.3]} 23. Nf4 {[%clk 0:00:28.1]} 23... Rb2
{[%clk 0:01:18.5]} 24. Nxe6 {[%clk 0:00:24.4]} 24... Rxd2 {[%clk 0:01:07.5]} 25.
Rxd2 {[%clk 0:00:19.8]} 25... fxe6 {[%clk 0:01:07.1]} 26. Bb5 {[%clk 0:00:17.5]}
26... Nc5 {[%clk 0:01:01.3]} 27. Bc4 {[%clk 0:00:16.9]} 27... Kf7 {[%clk
0:01:00.5]} 28. Ba2 {[%clk 0:00:16]} 28... Rb8 {[%clk 0:00:54.2]} 29. Kf2 {[%clk
0:00:13.9]} 29... Rb2 {[%clk 0:00:54.2]} 30. Rxb2 {[%clk 0:00:13]} 30... Bxb2
{[%clk 0:00:55.1]} 31. Bxc5 {[%clk 0:00:13.3]} 31... dxc5 {[%clk 0:00:54.6]} 32.
Bc4 {[%clk 0:00:13.9]} 32... Bd4+ {[%clk 0:00:54.4]} 33. Kg3 {[%clk 0:00:14]}
33... Kf6 {[%clk 0:00:50.9]} 1/2-1/2

[Event "*** SCC Grand Prix: Titled Tuesday Blitz"]
[Site "Chess.com"]
[Date "2020.09.29"]
[Round "3"]
[White "markberk"]
[Black "kagg1125"]
[Result "1-0"]
[WhiteElo "2378"]
[BlackElo "2544"]
[TimeControl "180+1"]
[EndTime "10:26:38 PDT"]
[Termination "markberk won by resignation"]

1. Nf3 {[%clk 0:03:00.9]} 1... Nf6 {[%clk 0:02:54.9]} 2. g3 {[%clk 0:03:00.6]}
2... g6 {[%clk 0:02:54.8]} 3. Bg2 {[%clk 0:03:00.5]} 3... Bg7 {[%clk 0:02:54]}
4. O-O {[%clk 0:03:00.2]} 4... O-O {[%clk 0:02:53.6]} 5. d4 {[%clk 0:03:00]}
5... c5 {[%clk 0:02:51.1]} 6. dxc5 {[%clk 0:02:59.5]} 6... Na6 {[%clk
0:02:50.8]} 7. Be3 {[%clk 0:02:59.2]} 7... Ne4 {[%clk 0:02:11.7]} 8. Bd4 {[%clk
0:02:52.6]} 8... Nexc5 {[%clk 0:01:43.8]} 9. Bxg7 {[%clk 0:02:47.9]} 9... Kxg7
{[%clk 0:01:44.7]} 10. Nc3 {[%clk 0:02:47.1]} 10... d6 {[%clk 0:01:42.3]} 11. e4
{[%clk 0:02:36.4]} 11... Bg4 {[%clk 0:01:26.3]} 12. h3 {[%clk 0:02:31]} 12...
Bxf3 {[%clk 0:01:25.3]} 13. Qxf3 {[%clk 0:02:30.8]} 13... Nc7 {[%clk 0:01:17.8]}
14. Qe3 {[%clk 0:02:23.2]} 14... N7e6 {[%clk 0:01:12.9]} 15. e5 {[%clk
0:02:18.2]} 15... Rc8 {[%clk 0:01:03.5]} 16. Rad1 {[%clk 0:02:14.9]} 16... Qa5
{[%clk 0:00:40.1]} 17. exd6 {[%clk 0:02:11.3]} 17... exd6 {[%clk 0:00:40.1]} 18.
Rxd6 {[%clk 0:02:08.9]} 18... Rfd8 {[%clk 0:00:39.6]} 19. Rxd8 {[%clk
0:01:51.7]} 19... Rxd8 {[%clk 0:00:36.2]} 20. a3 {[%clk 0:01:46.8]} 20... Nd7
{[%clk 0:00:26.9]} 21. Rd1 {[%clk 0:01:34.1]} 21... Nf6 {[%clk 0:00:27]} 22.
Rxd8 {[%clk 0:01:26]} 22... Nxd8 {[%clk 0:00:27.9]} 23. Qe7 {[%clk 0:01:07.9]}
23... Qb6 {[%clk 0:00:20]} 24. Qb4 {[%clk 0:00:56.8]} 24... Qc7 {[%clk
0:00:17.9]} 25. Qd4 {[%clk 0:00:47.5]} 25... Nc6 {[%clk 0:00:15.8]} 26. Qxf6+
{[%clk 0:00:45.4]} 1-0

[Event "*** SCC Grand Prix: Titled Tuesday Blitz"]
[Site "Chess.com"]
[Date "2020.09.29"]
[Round "3"]
[White "Shuvalov"]
[Black "mfwagnerpeixoto"]
[Result "1-0"]
[WhiteElo "2425"]
[BlackElo "2218"]
[TimeControl "180+1"]
[EndTime "10:26:40 PDT"]
[Termination "Shuvalov won by resignation"]

1. e4 {[%clk 0:02:52.1]} 1... c5 {[%clk 0:02:49.6]} 2. Nf3 {[%clk 0:02:51]} 2...
g6 {[%clk 0:02:49.2]} 3. d4 {[%clk 0:02:50.7]} 3... cxd4 {[%clk 0:02:50.1]} 4.
Nxd4 {[%clk 0:02:50.9]} 4... Bg7 {[%clk 0:02:49.5]} 5. Be3 {[%clk 0:02:50.8]}
5... Nf6 {[%clk 0:02:48.2]} 6. Nc3 {[%clk 0:02:50.5]} 6... d6 {[%clk 0:02:46.2]}
7. f3 {[%clk 0:02:50.2]} 7... O-O {[%clk 0:02:46.2]} 8. Bc4 {[%clk 0:02:47.6]}
8... Nc6 {[%clk 0:02:46]} 9. Qd2 {[%clk 0:02:47.6]} 9... Bd7 {[%clk 0:02:45.6]}
10. O-O-O {[%clk 0:02:47.3]} 10... Ne5 {[%clk 0:02:45]} 11. Bb3 {[%clk 0:02:47]}
11... Rb8 {[%clk 0:02:44.7]} 12. h4 {[%clk 0:02:44.8]} 12... b5 {[%clk
0:02:44.5]} 13. Kb1 {[%clk 0:02:40.4]} 13... Nc4 {[%clk 0:00:27.9]} 14. Bxc4
{[%clk 0:02:37.9]} 14... bxc4 {[%clk 0:00:28.8]} 15. Ka1 {[%clk 0:02:38.2]}
15... Qa5 {[%clk 0:00:17.4]} 16. Rb1 {[%clk 0:02:35.3]} 16... Rfc8 {[%clk
0:00:15.6]} 17. g4 {[%clk 0:02:28.1]} 17... Qa6 {[%clk 0:00:14.7]} 18. h5 {[%clk
0:02:13.8]} 18... Rc5 {[%clk 0:00:13.2]} 19. hxg6 {[%clk 0:02:11.8]} 19... fxg6
{[%clk 0:00:14.1]} 20. a3 {[%clk 0:01:42.7]} 20... Ra5 {[%clk 0:00:13.7]} 21.
Na2 {[%clk 0:01:33.5]} 21... e5 {[%clk 0:00:11.6]} 22. Ne2 {[%clk 0:01:28.5]}
22... Be6 {[%clk 0:00:11.5]} 23. Nec3 {[%clk 0:01:27.2]} 23... d5 {[%clk
0:00:10.3]} 24. exd5 {[%clk 0:01:23.4]} 24... Nxd5 {[%clk 0:00:11.2]} 25. Nxd5
{[%clk 0:01:20.2]} 25... Rxd5 {[%clk 0:00:12.1]} 26. Nb4 {[%clk 0:01:11.4]}
26... Qd6 {[%clk 0:00:07.3]} 27. Nxd5 {[%clk 0:01:10.2]} 27... Bxd5 {[%clk
0:00:08.2]} 28. Rhd1 {[%clk 0:01:08.2]} 28... Rb5 {[%clk 0:00:06.6]} 29. Bh6
{[%clk 0:01:00.2]} 29... e4 {[%clk 0:00:05.8]} 30. Bxg7 {[%clk 0:00:59.2]} 30...
Kxg7 {[%clk 0:00:05.8]} 31. fxe4 {[%clk 0:00:59.1]} 1-0

[Event "*** SCC Grand Prix: Titled Tuesday Blitz"]
[Site "Chess.com"]
[Date "2020.09.29"]
[Round "3"]
[White "RobPeresian"]
[Black "Resignify"]
[Result "0-1"]
[WhiteElo "2409"]
[BlackElo "2238"]
[TimeControl "180+1"]
[EndTime "10:26:42 PDT"]
[Termination "Resignify won by checkmate"]

1. Nf3 {[%clk 0:00:32.9]} 1... Nf6 {[%clk 0:02:59.1]} 2. c4 {[%clk 0:00:33]}
2... g6 {[%clk 0:02:58.9]} 3. Nc3 {[%clk 0:00:33.6]} 3... Bg7 {[%clk 0:02:59.1]}
4. e4 {[%clk 0:00:34.2]} 4... d6 {[%clk 0:02:58.8]} 5. d4 {[%clk 0:00:34.9]}
5... O-O {[%clk 0:02:58.8]} 6. h3 {[%clk 0:00:34.8]} 6... Nbd7 {[%clk 0:02:59]}
7. Bg5 {[%clk 0:00:34]} 7... c5 {[%clk 0:02:58.4]} 8. d5 {[%clk 0:00:34.1]} 8...
h6 {[%clk 0:02:58]} 9. Be3 {[%clk 0:00:33.3]} 9... a6 {[%clk 0:02:45.6]} 10. a4
{[%clk 0:00:32.2]} 10... b6 {[%clk 0:02:44.3]} 11. Bd3 {[%clk 0:00:32]} 11...
Rb8 {[%clk 0:02:40]} 12. O-O {[%clk 0:00:31.9]} 12... Ne8 {[%clk 0:02:39.3]} 13.
Qd2 {[%clk 0:00:31.3]} 13... Kh7 {[%clk 0:02:38.9]} 14. Rae1 {[%clk 0:00:31.9]}
14... Nc7 {[%clk 0:02:36]} 15. Nh2 {[%clk 0:00:30]} 15... Ne5 {[%clk 0:02:32.7]}
16. f4 {[%clk 0:00:26.8]} 16... Nxd3 {[%clk 0:02:31.1]} 17. Qxd3 {[%clk
0:00:27.7]} 17... b5 {[%clk 0:02:31.3]} 18. axb5 {[%clk 0:00:25.2]} 18... axb5
{[%clk 0:02:31.4]} 19. cxb5 {[%clk 0:00:24.5]} 19... Bd7 {[%clk 0:02:29.1]} 20.
e5 {[%clk 0:00:22.4]} 20... Nxb5 {[%clk 0:02:26]} 21. e6 {[%clk 0:00:18.4]}
21... fxe6 {[%clk 0:02:22.2]} 22. dxe6 {[%clk 0:00:19.3]} 22... Bc6 {[%clk
0:02:14.3]} 23. f5 {[%clk 0:00:19.6]} 23... Nxc3 {[%clk 0:01:53.4]} 24. fxg6+
{[%clk 0:00:17.1]} 24... Kg8 {[%clk 0:01:53.3]} 25. bxc3 {[%clk 0:00:18]} 25...
Rb2 {[%clk 0:01:50.1]} 26. Rf7 {[%clk 0:00:17.1]} 26... Rxg2+ {[%clk 0:01:47]}
27. Kf1 {[%clk 0:00:17.4]} 27... Rxh2 {[%clk 0:01:41.9]} 28. Qf5 {[%clk
0:00:17]} 28... Qa8 {[%clk 0:01:10.9]} 29. c4 {[%clk 0:00:15.3]} 29... Be4
{[%clk 0:01:00.2]} 30. Qg4 {[%clk 0:00:13.2]} 30... Bd3+ {[%clk 0:00:51]} 31.
Kg1 {[%clk 0:00:13]} 31... Qh1# {[%clk 0:00:49.4]} 0-1

[Event "*** SCC Grand Prix: Titled Tuesday Blitz"]
[Site "Chess.com"]
[Date "2020.09.29"]
[Round "3"]
[White "deribas12345"]
[Black "WPWPWP-2015"]
[Result "0-1"]
[WhiteElo "2622"]
[BlackElo "2420"]
[TimeControl "180+1"]
[EndTime "10:26:43 PDT"]
[Termination "WPWPWP-2015 won on time"]

1. d4 {[%clk 0:02:58]} 1... Nf6 {[%clk 0:02:59.1]} 2. c4 {[%clk 0:02:52.4]} 2...
e6 {[%clk 0:02:58.1]} 3. Nc3 {[%clk 0:02:52.1]} 3... Bb4 {[%clk 0:02:57.4]} 4.
a3 {[%clk 0:02:51.5]} 4... Bxc3+ {[%clk 0:02:55.2]} 5. bxc3 {[%clk 0:02:52.4]}
5... O-O {[%clk 0:02:54.8]} 6. f3 {[%clk 0:02:52.7]} 6... d6 {[%clk 0:02:55]} 7.
e4 {[%clk 0:02:51.8]} 7... e5 {[%clk 0:02:55.3]} 8. Bd3 {[%clk 0:02:52.4]} 8...
c5 {[%clk 0:02:53.6]} 9. d5 {[%clk 0:02:51.5]} 9... Nh5 {[%clk 0:02:46.4]} 10.
Ne2 {[%clk 0:02:49.9]} 10... f5 {[%clk 0:02:42.5]} 11. exf5 {[%clk 0:02:35.9]}
11... Bxf5 {[%clk 0:02:41.4]} 12. Bxf5 {[%clk 0:02:35.6]} 12... Rxf5 {[%clk
0:02:41]} 13. g4 {[%clk 0:02:36.3]} 13... Rxf3 {[%clk 0:02:38.5]} 14. gxh5
{[%clk 0:02:35.2]} 14... Qh4+ {[%clk 0:02:37.9]} 15. Kd2 {[%clk 0:02:34]} 15...
Qxc4 {[%clk 0:02:32.8]} 16. Qc2 {[%clk 0:02:27.7]} 16... Nd7 {[%clk 0:02:19.7]}
17. Rb1 {[%clk 0:02:18.4]} 17... Nf6 {[%clk 0:02:10.4]} 18. Ke1 {[%clk
0:01:57.7]} 18... Qh4+ {[%clk 0:02:06.6]} 19. Kd1 {[%clk 0:01:01.3]} 19... Ne4
{[%clk 0:02:05.5]} 20. Re1 {[%clk 0:00:19.7]} 20... Nf2+ {[%clk 0:01:54.2]} 21.
Kd2 {[%clk 0:00:19.2]} 21... Qg5+ {[%clk 0:01:52.5]} 22. Nf4 {[%clk 0:00:18.6]}
22... Qxf4+ {[%clk 0:01:51.9]} 23. Ke2 {[%clk 0:00:18.9]} 23... Qc4+ {[%clk
0:01:04.5]} 24. Kxf3 {[%clk 0:00:16.8]} 24... Rf8+ {[%clk 0:01:03.6]} 25. Kg2
{[%clk 0:00:06]} 25... Qg4+ {[%clk 0:01:01.9]} 26. Kf1 {[%clk 0:00:06.1]} 26...
Nd1+ {[%clk 0:00:53.2]} 27. Bf4 {[%clk 0:00:02.1]} 27... Rxf4+ {[%clk
0:00:52.3]} 0-1

[Event "*** SCC Grand Prix: Titled Tuesday Blitz"]
[Site "Chess.com"]
[Date "2020.09.29"]
[Round "3"]
[White "chessmachine14"]
[Black "AlexSuv"]
[Result "0-1"]
[WhiteElo "2293"]
[BlackElo "2510"]
[TimeControl "180+1"]
[EndTime "10:26:45 PDT"]
[Termination "AlexSuv won by resignation"]

1. e4 {[%clk 0:03:00.9]} 1... c5 {[%clk 0:02:59.6]} 2. Nf3 {[%clk 0:03:00.4]}
2... e6 {[%clk 0:02:59]} 3. d4 {[%clk 0:03:00.2]} 3... cxd4 {[%clk 0:02:59.5]}
4. Nxd4 {[%clk 0:03:00.5]} 4... Nc6 {[%clk 0:03:00.2]} 5. Nc3 {[%clk 0:02:59.6]}
5... Qc7 {[%clk 0:02:58.6]} 6. g3 {[%clk 0:02:58.5]} 6... a6 {[%clk 0:02:57.9]}
7. Bg2 {[%clk 0:02:57.3]} 7... Nf6 {[%clk 0:02:58.5]} 8. O-O {[%clk 0:02:56.8]}
8... Nxd4 {[%clk 0:02:58.9]} 9. Qxd4 {[%clk 0:02:56.2]} 9... Bc5 {[%clk
0:02:59.6]} 10. Bf4 {[%clk 0:02:56.3]} 10... d6 {[%clk 0:02:59.6]} 11. Qd3
{[%clk 0:02:56]} 11... h6 {[%clk 0:03:00.3]} 12. Rad1 {[%clk 0:02:43.8]} 12...
e5 {[%clk 0:02:59.2]} 13. Be3 {[%clk 0:02:43.8]} 13... O-O {[%clk 0:02:57.4]}
14. h3 {[%clk 0:02:33.3]} 14... Be6 {[%clk 0:02:54.5]} 15. Na4 {[%clk
0:02:13.2]} 15... Bxe3 {[%clk 0:02:27.1]} 16. Qxe3 {[%clk 0:02:12.9]} 16... Qxc2
{[%clk 0:02:26.3]} 17. Rc1 {[%clk 0:02:09.2]} 17... Qxa4 {[%clk 0:02:25.4]} 18.
a3 {[%clk 0:01:51.4]} 18... Rac8 {[%clk 0:02:24.2]} 19. Qb6 {[%clk 0:01:50.9]}
19... Qb5 {[%clk 0:02:06.1]} 20. Qxd6 {[%clk 0:01:45.3]} 20... Rxc1 {[%clk
0:02:05.7]} 21. Rxc1 {[%clk 0:01:44]} 21... Qxb2 {[%clk 0:02:06.3]} 22. Rc7
{[%clk 0:01:42.6]} 22... Qb1+ {[%clk 0:01:54.6]} 23. Kh2 {[%clk 0:01:41.8]}
23... Nxe4 {[%clk 0:01:53]} 24. Qxe5 {[%clk 0:01:32.2]} 24... Nxf2 {[%clk
0:01:51.4]} 25. Qe3 {[%clk 0:01:13.2]} 25... Qa2 {[%clk 0:01:39.4]} 26. g4
{[%clk 0:00:11.6]} 26... Nd1 {[%clk 0:01:23.1]} 27. Qd4 {[%clk 0:00:07.2]} 27...
Qb2 {[%clk 0:01:06.1]} 28. Qxd1 {[%clk 0:00:06.2]} 28... Qe5+ {[%clk 0:01:05.9]}
29. Kh1 {[%clk 0:00:05.9]} 29... Qxc7 {[%clk 0:01:06.1]} 30. Qb1 {[%clk
0:00:06]} 30... b5 {[%clk 0:01:05.3]} 31. Qe4 {[%clk 0:00:03.9]} 31... Rc8
{[%clk 0:01:06.2]} 32. Bf1 {[%clk 0:00:04]} 32... Qc6 {[%clk 0:01:05.5]} 33. Bg2
{[%clk 0:00:03]} 33... Qxe4 {[%clk 0:01:05.5]} 34. Bxe4 {[%clk 0:00:03.9]} 34...
Rc3 {[%clk 0:01:05.8]} 0-1

[Event "*** SCC Grand Prix: Titled Tuesday Blitz"]
[Site "Chess.com"]
[Date "2020.09.29"]
[Round "3"]
[White "Rogarcia1"]
[Black "Colombiano07"]
[Result "0-1"]
[WhiteElo "2098"]
[BlackElo "2349"]
[TimeControl "180+1"]
[EndTime "10:26:46 PDT"]
[Termination "Colombiano07 won by resignation"]

1. e4 {[%clk 0:03:00.9]} 1... e6 {[%clk 0:02:59.8]} 2. d4 {[%clk 0:03:00.5]}
2... d5 {[%clk 0:02:58.6]} 3. e5 {[%clk 0:03:00.1]} 3... c5 {[%clk 0:02:58.5]}
4. c3 {[%clk 0:03:00.2]} 4... Nc6 {[%clk 0:02:58.8]} 5. Nf3 {[%clk 0:03:00.1]}
5... Qb6 {[%clk 0:02:58.9]} 6. Be2 {[%clk 0:02:59.5]} 6... Nh6 {[%clk
0:02:57.1]} 7. Bxh6 {[%clk 0:02:58.4]} 7... Qxb2 {[%clk 0:02:52.9]} 8. Be3
{[%clk 0:02:48]} 8... Qxa1 {[%clk 0:02:52.3]} 9. Qc2 {[%clk 0:02:39.8]} 9... Bd7
{[%clk 0:02:48.2]} 10. O-O {[%clk 0:02:37.9]} 10... cxd4 {[%clk 0:02:48]} 11.
Nxd4 {[%clk 0:02:20.5]} 11... Nxe5 {[%clk 0:01:44.7]} 12. Nd2 {[%clk 0:02:09.8]}
12... Qxf1+ {[%clk 0:01:45.6]} 13. Kxf1 {[%clk 0:02:03.1]} 13... a6 {[%clk
0:01:41.8]} 14. f4 {[%clk 0:01:50.9]} 14... Ng6 {[%clk 0:01:39.6]} 15. f5 {[%clk
0:01:49.5]} 15... Ne5 {[%clk 0:01:37.6]} 16. Bf4 {[%clk 0:01:35.7]} 16... Bd6
{[%clk 0:01:35.2]} 17. N2f3 {[%clk 0:01:06.9]} 17... Ng4 {[%clk 0:01:31.8]} 18.
Qd2 {[%clk 0:00:53.7]} 18... e5 {[%clk 0:01:29.4]} 19. Bg3 {[%clk 0:00:42.4]}
19... h5 {[%clk 0:01:17.1]} 20. Qg5 {[%clk 0:00:36.9]} 20... Be7 {[%clk
0:01:13]} 21. Qxg7 {[%clk 0:00:35.3]} 21... Bf6 {[%clk 0:01:13]} 22. Bxe5 {[%clk
0:00:16.2]} 22... Bxg7 {[%clk 0:01:10.2]} 23. Bxg7 {[%clk 0:00:16.9]} 23... Rg8
{[%clk 0:01:11.1]} 24. Be5 {[%clk 0:00:16.7]} 24... Ne3+ {[%clk 0:01:08]} 25.
Kf2 {[%clk 0:00:16.4]} 25... Nxf5 {[%clk 0:01:08.9]} 26. Nxf5 {[%clk 0:00:10.4]}
26... Bxf5 {[%clk 0:01:09.8]} 27. Nd4 {[%clk 0:00:10.9]} 27... Be6 {[%clk
0:01:09.5]} 28. Bxh5 {[%clk 0:00:11.1]} 28... Ke7 {[%clk 0:01:08.8]} 29. Bf3
{[%clk 0:00:09.6]} 29... Rac8 {[%clk 0:01:08.4]} 30. g3 {[%clk 0:00:05.9]} 30...
Rxc3 {[%clk 0:01:07.8]} 31. Nxe6 {[%clk 0:00:06.1]} 31... Rc2+ {[%clk
0:01:08.2]} 32. Ke3 {[%clk 0:00:06.5]} 32... Kxe6 {[%clk 0:01:08.2]} 33. Bd4
{[%clk 0:00:06]} 33... Rxh2 {[%clk 0:01:07.9]} 0-1